[Event "Titled Tuesday Blitz January 10 Early 2023"]
[White "Adam, Ernestina"]
[Black "Vifleemskaia, Svetlana"]
[WhiteFideId "165883"]
[BlackFideId "4129490"]
[WhiteElo "2040"]
[BlackElo "1971"]
[Result "0-1"]
[Round "03"]
[TimeControl "180+2"]
[Date "2023.01.10"]
[WhiteClock "0:00:01"]
[BlackClock "0:00:13"]

1. e4 {[%clk 0:03:00]}  e5 {[%clk 0:02:31]} 2. Nf3 {[%clk 0:03:00]}  Nc6 {[%clk 0:02:31]} 3. Bc4 {[%clk 0:02:59]}  Nf6 {[%clk 0:02:29]} 4. d3 {[%clk 0:02:55]}  Be7 {[%clk 0:02:28]} 5. c3 {[%clk 0:02:54]}  O-O {[%clk 0:02:29]} 6. O-O {[%clk 0:02:50]}  a6 {[%clk 0:02:29]} 7. Bb3 {[%clk 0:02:47]}  d6 {[%clk 0:02:27]} 8. Re1 {[%clk 0:02:41]}  Bg4 {[%clk 0:02:27]} 9. Nbd2 {[%clk 0:02:40]}  Nh5 {[%clk 0:02:22]} 10. Nf1 {[%clk 0:02:38]}  Nf4 {[%clk 0:02:14]} 11. Bxf4 {[%clk 0:02:32]}  exf4 {[%clk 0:02:15]} 12. N1d2 {[%clk 0:02:12]}  Ne5 {[%clk 0:02:09]} 13. h3 {[%clk 0:02:08]}  Nxf3+ {[%clk 0:02:06]} 14. Nxf3 {[%clk 0:02:06]}  Bh5 {[%clk 0:02:06]} 15. Qd2 {[%clk 0:02:00]}  Bxf3 {[%clk 0:02:01]} 16. gxf3 {[%clk 0:02:01]}  Bg5 {[%clk 0:01:59]} 17. Kh2 {[%clk 0:01:58]}  Bh6 {[%clk 0:01:58]} 18. Rg1 {[%clk 0:01:57]}  Kh8 {[%clk 0:01:58]} 19. d4 {[%clk 0:01:53]}  Qh4 {[%clk 0:01:52]} 20. Rg4 {[%clk 0:01:51]}  Qh5 {[%clk 0:01:51]} 21. Bc2 {[%clk 0:01:43]}  Rae8 {[%clk 0:01:48]} 22. Rag1 {[%clk 0:01:38]}  g6 {[%clk 0:01:42]} 23. d5 {[%clk 0:01:24]}  Re5 {[%clk 0:01:31]} 24. Qd4 {[%clk 0:01:20]}  Kg8 {[%clk 0:01:29]} 25. c4 {[%clk 0:01:16]}  b6 {[%clk 0:01:27]} 26. b3 {[%clk 0:01:16]}  Re7 {[%clk 0:01:19]} 27. Qf6 {[%clk 0:01:07]}  Qe5 {[%clk 0:01:13]} 28. Qh4 {[%clk 0:00:57]}  Bg7 {[%clk 0:01:00]} 29. Bd1 {[%clk 0:00:34]}  f5 {[%clk 0:00:41]} 30. exf5 {[%clk 0:00:31]}  Rxf5 {[%clk 0:00:40]} 31. Rg5 {[%clk 0:00:27]}  Bf6 {[%clk 0:00:32]} 32. Rxf5 {[%clk 0:00:20]}  Bxh4 {[%clk 0:00:32]} 33. Rxe5 {[%clk 0:00:20]}  Rxe5 {[%clk 0:00:31]} 34. Rg4 {[%clk 0:00:19]}  Bxf2 {[%clk 0:00:28]} 35. Rxf4 {[%clk 0:00:19]}  Re1 {[%clk 0:00:27]} 36. Bc2 {[%clk 0:00:18]}  Re2 {[%clk 0:00:26]} 37. Be4 {[%clk 0:00:18]}  Be3+ {[%clk 0:00:25]} 38. Kg3 {[%clk 0:00:18]}  Bxf4+ {[%clk 0:00:25]} 39. Kxf4 {[%clk 0:00:19]}  Rxa2 {[%clk 0:00:25]} 40. b4 {[%clk 0:00:17]}  Rb2 {[%clk 0:00:24]} 41. b5 {[%clk 0:00:14]}  Rd2 {[%clk 0:00:22]} 42. bxa6 {[%clk 0:00:11]}  Ra2 {[%clk 0:00:22]} 43. Kg5 {[%clk 0:00:10]}  Kf7 {[%clk 0:00:20]} 44. Kh6 {[%clk 0:00:08]}  Kg8 {[%clk 0:00:19]} 45. Kg5 {[%clk 0:00:08]}  Kg7 {[%clk 0:00:19]} 46. Kf4 {[%clk 0:00:07]}  Kf6 {[%clk 0:00:18]} 47. Ke3 {[%clk 0:00:07]}  Rxa6 {[%clk 0:00:18]} 48. Kd4 {[%clk 0:00:06]}  Ra3 {[%clk 0:00:18]} 49. h4 {[%clk 0:00:04]}  h6 {[%clk 0:00:19]} 50. Bc2 {[%clk 0:00:03]}  Ra2 {[%clk 0:00:18]} 51. Be4 {[%clk 0:00:03]}  Rh2 {[%clk 0:00:17]} 52. h5 {[%clk 0:00:03]}  Rxh5 {[%clk 0:00:17]} 53. Kc3 {[%clk 0:00:03]}  Rh3 {[%clk 0:00:17]} 54. Kb4 {[%clk 0:00:03]}  g5 {[%clk 0:00:17]} 55. Kb5 {[%clk 0:00:03]}  Ke7 {[%clk 0:00:15]} 56. Kc6 {[%clk 0:00:03]}  Kd8 {[%clk 0:00:14]} 57. Kb5 {[%clk 0:00:02]}  Rh2 {[%clk 0:00:14]} 58. Kb4 {[%clk 0:00:01]}  h5 {[%clk 0:00:14]} 59. Kc3 {[%clk 0:00:02]}  Rh3 {[%clk 0:00:12]} 60. Kd4 {[%clk 0:00:02]}  Rh4 {[%clk 0:00:12]} 61. Ke3 {[%clk 0:00:02]}  Ke7 {[%clk 0:00:12]} 62. Kf2 {[%clk 0:00:02]}  Kf6 {[%clk 0:00:12]} 63. Kg3 {[%clk 0:00:02]}  Ke5 {[%clk 0:00:12]} 64. Kg2 {[%clk 0:00:01]}  Rxe4 {[%clk 0:00:12]} 65. fxe4 {[%clk 0:00:01]}  Kxe4 {[%clk 0:00:13]} 0-1


[Site "https://www.chess.com"]

[Event "Titled Tuesday Blitz January 10 Early 2023"]
[White "Fathy, Elameir"]
[Black "Cruz Gomez, Miguel Angel"]
[WhiteFideId "10600396"]
[BlackFideId "5137160"]
[WhiteElo "2300"]
[BlackElo "1950"]
[Result "1-0"]
[Round "03"]
[TimeControl "180+2"]
[Date "2023.01.10"]
[WhiteClock "0:01:01"]
[BlackClock "0:00:15"]

1. d4 {[%clk 0:03:00]}  d5 {[%clk 0:02:59]} 2. c4 {[%clk 0:02:58]}  e5 {[%clk 0:02:58]} 3. Nf3 {[%clk 0:02:59]}  e4 {[%clk 0:02:49]} 4. Nfd2 {[%clk 0:02:59]}  c6 {[%clk 0:02:50]} 5. e3 {[%clk 0:03:00]}  Nf6 {[%clk 0:02:48]} 6. Nc3 {[%clk 0:02:59]}  Bd6 {[%clk 0:02:48]} 7. f3 {[%clk 0:02:49]}  exf3 {[%clk 0:02:44]} 8. Qxf3 {[%clk 0:02:36]}  Bg4 {[%clk 0:02:28]} 9. Qf2 {[%clk 0:02:36]}  Be6 {[%clk 0:02:28]} 10. Be2 {[%clk 0:02:30]}  O-O {[%clk 0:02:14]} 11. O-O {[%clk 0:02:29]}  Nbd7 {[%clk 0:02:06]} 12. e4 {[%clk 0:02:20]}  dxe4 {[%clk 0:02:05]} 13. Ndxe4 {[%clk 0:02:20]}  Nxe4 {[%clk 0:02:06]} 14. Nxe4 {[%clk 0:02:21]}  Bc7 {[%clk 0:01:58]} 15. Ng5 {[%clk 0:02:13]}  Qe7 {[%clk 0:01:48]} 16. Bf4 {[%clk 0:02:04]}  Bb6 {[%clk 0:01:13]} 17. Kh1 {[%clk 0:01:39]}  Bf5 {[%clk 0:01:09]} 18. c5 {[%clk 0:01:36]}  Bd8 {[%clk 0:01:07]} 19. Rae1 {[%clk 0:01:33]}  Bg6 {[%clk 0:01:00]} 20. Bc4 {[%clk 0:01:15]}  Qf6 {[%clk 0:01:00]} 21. Qd2 {[%clk 0:01:08]}  b6 {[%clk 0:00:38]} 22. b4 {[%clk 0:01:07]}  a5 {[%clk 0:00:37]} 23. a3 {[%clk 0:01:05]}  axb4 {[%clk 0:00:37]} 24. axb4 {[%clk 0:01:06]}  Ra3 {[%clk 0:00:17]} 25. Qc1 {[%clk 0:01:01]}  Ra7 {[%clk 0:00:15]} 1-0


[Site "https://www.chess.com"]

[Event "Titled Tuesday Blitz January 10 Early 2023"]
[White "Muhammed , Zahid"]
[Black "Bagwe Gaurang"]
[WhiteFideId "7800967"]
[BlackFideId "45039895"]
[WhiteElo "2737"]
[BlackElo "1847"]
[Result "1-0"]
[Round "04"]
[TimeControl "180+1"]
[Date "2023.01.10"]
[WhiteClock "0:00:21"]
[BlackClock "0:00:02"]

1. d4 {[%clk 0:03:00]}  Nf6 {[%clk 0:02:55]} 2. Nc3 {[%clk 0:02:59]}  d5 {[%clk 0:02:53]} 3. Bf4 {[%clk 0:02:59]}  e6 {[%clk 0:02:52]} 4. Nb5 {[%clk 0:02:59]}  Na6 {[%clk 0:02:50]} 5. e3 {[%clk 0:02:59]}  c6 {[%clk 0:02:50]} 6. Nc3 {[%clk 0:02:59]}  Bd6 {[%clk 0:02:48]} 7. Nf3 {[%clk 0:02:59]}  Nc7 {[%clk 0:02:46]} 8. Ne5 {[%clk 0:02:58]}  O-O {[%clk 0:02:46]} 9. g4 {[%clk 0:02:56]}  Ne4 {[%clk 0:02:42]} 10. Nxe4 {[%clk 0:02:52]}  dxe4 {[%clk 0:02:41]} 11. Bg3 {[%clk 0:02:52]}  f6 {[%clk 0:02:41]} 12. Nc4 {[%clk 0:02:52]}  Bxg3 {[%clk 0:02:28]} 13. hxg3 {[%clk 0:02:53]}  e5 {[%clk 0:02:27]} 14. c3 {[%clk 0:02:47]}  exd4 {[%clk 0:02:26]} 15. exd4 {[%clk 0:02:47]}  Nd5 {[%clk 0:02:22]} 16. Ne3 {[%clk 0:02:41]}  Nxe3 {[%clk 0:02:21]} 17. fxe3 {[%clk 0:02:42]}  Qd6 {[%clk 0:02:20]} 18. Bc4+ {[%clk 0:02:42]}  Kh8 {[%clk 0:02:13]} 19. Kf2 {[%clk 0:02:41]}  Be6 {[%clk 0:02:12]} 20. Bxe6 {[%clk 0:02:36]}  Qxe6 {[%clk 0:02:12]} 21. Qb3 {[%clk 0:02:36]}  Qxg4 {[%clk 0:02:09]} 22. Qd1 {[%clk 0:02:32]}  Qf5+ {[%clk 0:02:07]} 23. Kg2 {[%clk 0:02:32]}  Rad8 {[%clk 0:02:04]} 24. Rh5 {[%clk 0:02:28]}  Qg6 {[%clk 0:01:56]} 25. Qh1 {[%clk 0:02:26]}  Rd5 {[%clk 0:01:53]} 26. Rh4 {[%clk 0:02:22]}  Rg5 {[%clk 0:01:51]} 27. Qh3 {[%clk 0:02:21]}  h6 {[%clk 0:01:44]} 28. Rf1 {[%clk 0:02:21]}  c5 {[%clk 0:01:38]} 29. dxc5 {[%clk 0:02:11]}  Rd8 {[%clk 0:01:34]} 30. Rf2 {[%clk 0:02:11]}  Rxc5 {[%clk 0:01:19]} 31. Rg4 {[%clk 0:01:03]}  Qh7 {[%clk 0:01:01]} 32. Rgf4 {[%clk 0:01:02]}  Rg5 {[%clk 0:00:46]} 33. Qh4 {[%clk 0:01:00]}  Re8 {[%clk 0:00:37]} 34. Rd2 {[%clk 0:00:57]}  Qg6 {[%clk 0:00:35]} 35. Rd4 {[%clk 0:00:53]}  f5 {[%clk 0:00:35]} 36. Rf2 {[%clk 0:00:51]}  Qf6 {[%clk 0:00:31]} 37. Qf4 {[%clk 0:00:48]}  Rf8 {[%clk 0:00:27]} 38. Rd7 {[%clk 0:00:45]}  Rg4 {[%clk 0:00:25]} 39. Qxg4 {[%clk 0:00:44]}  fxg4 {[%clk 0:00:16]} 40. Rxf6 {[%clk 0:00:45]}  Rxf6 {[%clk 0:00:10]} 41. Rxb7 {[%clk 0:00:46]}  Rd6 {[%clk 0:00:10]} 42. a4 {[%clk 0:00:43]}  Rd2+ {[%clk 0:00:10]} 43. Kf1 {[%clk 0:00:43]}  Rd1+ {[%clk 0:00:10]} 44. Ke2 {[%clk 0:00:42]}  Rb1 {[%clk 0:00:10]} 45. c4 {[%clk 0:00:40]}  a5 {[%clk 0:00:09]} 46. c5 {[%clk 0:00:38]}  Kh7 {[%clk 0:00:07]} 47. Kd2 {[%clk 0:00:32]}  Rf1 {[%clk 0:00:06]} 48. c6 {[%clk 0:00:31]}  Rf2+ {[%clk 0:00:06]} 49. Kc3 {[%clk 0:00:29]}  Rf6 {[%clk 0:00:05]} 50. c7 {[%clk 0:00:27]}  Rc6+ {[%clk 0:00:05]} 51. Kd4 {[%clk 0:00:26]}  h5 {[%clk 0:00:05]} 52. Rb5 {[%clk 0:00:23]}  h4 {[%clk 0:00:04]} 53. Rc5 {[%clk 0:00:20]}  Rd6+ {[%clk 0:00:02]} 54. Ke5 {[%clk 0:00:20]}  hxg3 {[%clk 0:00:02]} 55. Kxd6 {[%clk 0:00:20]}  g2 {[%clk 0:00:02]} 56. Rc1 {[%clk 0:00:21]} 1-0


[Site "https://www.chess.com"]

[Event "Titled Tuesday Blitz January 10 Early 2023"]
[White "Demchenko, Anton"]
[Black "Vidit, Santosh Gujrathi"]
[WhiteFideId "4160258"]
[BlackFideId "5029465"]
[WhiteElo "2831"]
[BlackElo "2999"]
[Result "0-1"]
[Round "04"]
[TimeControl "180+1"]
[Date "2023.01.10"]
[WhiteClock "0:00:01"]
[BlackClock "0:00:10"]

1. e4 {[%clk 0:03:00]}  c5 {[%clk 0:02:55]} 2. Nf3 {[%clk 0:03:00]}  e6 {[%clk 0:02:55]} 3. c3 {[%clk 0:02:59]}  d5 {[%clk 0:02:52]} 4. exd5 {[%clk 0:02:59]}  Qxd5 {[%clk 0:02:53]} 5. d4 {[%clk 0:02:59]}  Nf6 {[%clk 0:02:53]} 6. Na3 {[%clk 0:02:54]}  Nc6 {[%clk 0:02:50]} 7. Be3 {[%clk 0:02:51]}  cxd4 {[%clk 0:02:41]} 8. Nb5 {[%clk 0:02:48]}  Qd7 {[%clk 0:02:28]} 9. Nbxd4 {[%clk 0:02:48]}  Nd5 {[%clk 0:02:07]} 10. Bd2 {[%clk 0:02:40]}  Bc5 {[%clk 0:01:51]} 11. Nxc6 {[%clk 0:02:20]}  Qxc6 {[%clk 0:01:50]} 12. Ne5 {[%clk 0:01:46]}  Qc7 {[%clk 0:01:50]} 13. Qa4+ {[%clk 0:01:42]}  Kf8 {[%clk 0:01:48]} 14. Nd3 {[%clk 0:01:38]}  Bd7 {[%clk 0:01:43]} 15. Qb3 {[%clk 0:01:30]}  Bd6 {[%clk 0:01:39]} 16. Be2 {[%clk 0:01:28]}  Bc6 {[%clk 0:01:38]} 17. O-O-O {[%clk 0:01:07]}  Nf4 {[%clk 0:01:13]} 18. Nxf4 {[%clk 0:00:49]}  Bxf4 {[%clk 0:01:14]} 19. Qb4+ {[%clk 0:00:43]}  Bd6 {[%clk 0:01:13]} 20. Qd4 {[%clk 0:00:36]}  Be5 {[%clk 0:01:08]} 21. Qc5+ {[%clk 0:00:34]}  Bd6 {[%clk 0:01:05]} 22. Qd4 {[%clk 0:00:34]}  f6 {[%clk 0:00:59]} 23. Be3 {[%clk 0:00:25]}  Be5 {[%clk 0:00:56]} 24. Qb4+ {[%clk 0:00:15]}  Kf7 {[%clk 0:00:56]} 25. f3 {[%clk 0:00:09]}  a5 {[%clk 0:00:44]} 26. Qc4 {[%clk 0:00:07]}  Rhd8 {[%clk 0:00:36]} 27. g3 {[%clk 0:00:05]}  b5 {[%clk 0:00:26]} 28. Qc5 {[%clk 0:00:05]}  Bd6 {[%clk 0:00:24]} 29. Qh5+ {[%clk 0:00:05]}  Kg8 {[%clk 0:00:24]} 30. Kb1 {[%clk 0:00:06]}  g6 {[%clk 0:00:18]} 31. Qg4 {[%clk 0:00:06]}  Qf7 {[%clk 0:00:16]} 32. Rhe1 {[%clk 0:00:05]}  a4 {[%clk 0:00:13]} 33. Bb6 {[%clk 0:00:03]}  Rd7 {[%clk 0:00:14]} 34. a3 {[%clk 0:00:03]}  Rb8 {[%clk 0:00:12]} 35. Ba5 {[%clk 0:00:03]}  Re8 {[%clk 0:00:11]} 36. Bb4 {[%clk 0:00:01]}  Bc7 {[%clk 0:00:10]} 0-1


[Site "https://www.chess.com"]

[Event "Titled Tuesday Blitz January 10 Early 2023"]
[White "Pakleza, Zbigniew"]
[Black "Chigaev, Maksim"]
[WhiteFideId "1119290"]
[BlackFideId "4108116"]
[WhiteElo "2825"]
[BlackElo "2985"]
[Result "0-1"]
[Round "04"]
[TimeControl "180+1"]
[Date "2023.01.10"]
[WhiteClock "0:00:15"]
[BlackClock "0:00:08"]

1. d4 {[%clk 0:03:00]}  Nf6 {[%clk 0:03:00]} 2. Nf3 {[%clk 0:03:00]}  g6 {[%clk 0:03:01]} 3. Bf4 {[%clk 0:03:01]}  Bg7 {[%clk 0:03:01]} 4. e3 {[%clk 0:03:01]}  O-O {[%clk 0:03:01]} 5. Be2 {[%clk 0:03:01]}  c5 {[%clk 0:03:01]} 6. c3 {[%clk 0:03:01]}  Qb6 {[%clk 0:03:02]} 7. Qb3 {[%clk 0:03:01]}  d6 {[%clk 0:03:02]} 8. Nbd2 {[%clk 0:03:01]}  Be6 {[%clk 0:02:55]} 9. Bc4 {[%clk 0:02:58]}  Bxc4 {[%clk 0:02:55]} 10. Nxc4 {[%clk 0:02:59]}  Qc7 {[%clk 0:02:52]} 11. O-O {[%clk 0:02:55]}  Nbd7 {[%clk 0:02:51]} 12. a4 {[%clk 0:02:53]}  b6 {[%clk 0:02:48]} 13. h3 {[%clk 0:02:47]}  a6 {[%clk 0:02:45]} 14. Rfd1 {[%clk 0:02:35]}  Rab8 {[%clk 0:02:31]} 15. Ncd2 {[%clk 0:02:05]}  b5 {[%clk 0:02:25]} 16. axb5 {[%clk 0:02:03]}  axb5 {[%clk 0:02:26]} 17. Ra6 {[%clk 0:01:54]}  b4 {[%clk 0:01:48]} 18. c4 {[%clk 0:01:52]}  Ra8 {[%clk 0:01:10]} 19. Rda1 {[%clk 0:01:45]}  Qb7 {[%clk 0:01:11]} 20. Qa4 {[%clk 0:01:41]}  Rxa6 {[%clk 0:01:10]} 21. Qxa6 {[%clk 0:01:42]}  Qxa6 {[%clk 0:01:11]} 22. Rxa6 {[%clk 0:01:43]}  Rc8 {[%clk 0:01:09]} 23. b3 {[%clk 0:01:39]}  Kf8 {[%clk 0:01:09]} 24. d5 {[%clk 0:01:34]}  h6 {[%clk 0:01:02]} 25. e4 {[%clk 0:01:32]}  Ne8 {[%clk 0:00:59]} 26. Ne1 {[%clk 0:01:14]}  g5 {[%clk 0:00:29]} 27. Be3 {[%clk 0:01:14]}  Nc7 {[%clk 0:00:30]} 28. Ra7 {[%clk 0:01:13]}  Ke8 {[%clk 0:00:30]} 29. Nd3 {[%clk 0:01:13]}  Kd8 {[%clk 0:00:31]} 30. g3 {[%clk 0:01:08]}  Ra8 {[%clk 0:00:31]} 31. Rxa8+ {[%clk 0:01:08]}  Nxa8 {[%clk 0:00:31]} 32. f4 {[%clk 0:01:06]}  gxf4 {[%clk 0:00:32]} 33. gxf4 {[%clk 0:01:07]}  Bc3 {[%clk 0:00:28]} 34. Nf3 {[%clk 0:01:03]}  Nc7 {[%clk 0:00:18]} 35. Kg2 {[%clk 0:01:00]}  Nf6 {[%clk 0:00:17]} 36. Nf2 {[%clk 0:01:00]}  Nd7 {[%clk 0:00:12]} 37. Kg3 {[%clk 0:00:59]}  Nb6 {[%clk 0:00:10]} 38. Kg4 {[%clk 0:00:42]}  Ne8 {[%clk 0:00:08]} 39. e5 {[%clk 0:00:36]}  Nd7 {[%clk 0:00:06]} 40. Nd3 {[%clk 0:00:35]}  e6 {[%clk 0:00:05]} 41. dxe6 {[%clk 0:00:31]}  fxe6 {[%clk 0:00:05]} 42. exd6 {[%clk 0:00:31]}  Nxd6 {[%clk 0:00:05]} 43. Nxc5 {[%clk 0:00:31]}  Nxc5 {[%clk 0:00:06]} 44. Bxc5 {[%clk 0:00:32]}  Ne4 {[%clk 0:00:06]} 45. Be3 {[%clk 0:00:25]}  Nf6+ {[%clk 0:00:06]} 46. Kh4 {[%clk 0:00:23]}  Ke7 {[%clk 0:00:07]} 47. Ne5 {[%clk 0:00:19]}  Be1+ {[%clk 0:00:07]} 48. Bf2 {[%clk 0:00:15]}  Bxf2# {[%clk 0:00:08]} 0-1


[Site "https://www.chess.com"]

[Event "Titled Tuesday Blitz January 10 Early 2023"]
[White "Puranik, Abhimanyu"]
[Black "Boros, Denes"]
[WhiteFideId "5061245"]
[BlackFideId "722340"]
[WhiteElo "2961"]
[BlackElo "2810"]
[Result "1-0"]
[Round "04"]
[TimeControl "180+1"]
[Date "2023.01.10"]
[WhiteClock "0:00:04"]
[BlackClock "0:00:07"]

1. Nf3 {[%clk 0:03:00]}  g6 {[%clk 0:03:00]} 2. g3 {[%clk 0:03:00]}  Bg7 {[%clk 0:03:00]} 3. Bg2 {[%clk 0:03:00]}  c5 {[%clk 0:03:00]} 4. O-O {[%clk 0:03:00]}  Nc6 {[%clk 0:03:01]} 5. c4 {[%clk 0:02:59]}  d6 {[%clk 0:02:58]} 6. Nc3 {[%clk 0:02:57]}  Nh6 {[%clk 0:02:57]} 7. b3 {[%clk 0:02:52]}  Nf5 {[%clk 0:02:56]} 8. Bb2 {[%clk 0:02:52]}  h5 {[%clk 0:02:56]} 9. h3 {[%clk 0:02:50]}  Nfd4 {[%clk 0:02:55]} 10. e3 {[%clk 0:02:39]}  Nxf3+ {[%clk 0:02:55]} 11. Qxf3 {[%clk 0:02:39]}  Bf5 {[%clk 0:02:48]} 12. Na4 {[%clk 0:01:52]}  e5 {[%clk 0:02:34]} 13. Rfd1 {[%clk 0:01:45]}  Qd7 {[%clk 0:02:34]} 14. Kh2 {[%clk 0:01:43]}  Bg4 {[%clk 0:02:32]} 15. Qd5 {[%clk 0:01:40]}  Be6 {[%clk 0:02:03]} 16. Qd3 {[%clk 0:01:30]}  f5 {[%clk 0:02:02]} 17. h4 {[%clk 0:01:24]}  g5 {[%clk 0:02:02]} 18. hxg5 {[%clk 0:01:14]}  h4 {[%clk 0:02:02]} 19. f4 {[%clk 0:01:15]}  O-O-O {[%clk 0:01:54]} 20. Rh1 {[%clk 0:01:12]}  Qf7 {[%clk 0:01:51]} 21. Nc3 {[%clk 0:01:06]}  Qh5 {[%clk 0:01:48]} 22. Kg1 {[%clk 0:01:04]}  Qg4 {[%clk 0:01:45]} 23. Qe2 {[%clk 0:00:40]}  Qxg3 {[%clk 0:01:40]} 24. Qf3 {[%clk 0:00:30]}  exf4 {[%clk 0:01:38]} 25. exf4 {[%clk 0:00:28]}  Qg4 {[%clk 0:01:03]} 26. Rh3 {[%clk 0:00:28]}  Rd7 {[%clk 0:01:00]} 27. Re1 {[%clk 0:00:26]}  Nd4 {[%clk 0:01:00]} 28. Qf1 {[%clk 0:00:21]}  Bf7 {[%clk 0:00:53]} 29. Kh2 {[%clk 0:00:20]}  Ne6 {[%clk 0:00:45]} 30. Nd5 {[%clk 0:00:20]}  Bxb2 {[%clk 0:00:25]} 31. Bf3 {[%clk 0:00:20]}  Nd4 {[%clk 0:00:15]} 32. Bxg4 {[%clk 0:00:20]}  fxg4 {[%clk 0:00:16]} 33. Rhe3 {[%clk 0:00:19]}  g3+ {[%clk 0:00:12]} 34. Kh3 {[%clk 0:00:19]}  Kd8 {[%clk 0:00:11]} 35. f5 {[%clk 0:00:15]}  Rf8 {[%clk 0:00:10]} 36. Qf4 {[%clk 0:00:14]}  Bg8 {[%clk 0:00:10]} 37. Qxh4 {[%clk 0:00:14]}  Nxf5 {[%clk 0:00:10]} 38. Qf4 {[%clk 0:00:13]}  Rh7+ {[%clk 0:00:08]} 39. Kg2 {[%clk 0:00:09]}  Nh4+ {[%clk 0:00:08]} 40. Kxg3 {[%clk 0:00:07]}  Rxf4 {[%clk 0:00:08]} 41. Re8+ {[%clk 0:00:07]}  Kd7 {[%clk 0:00:09]} 42. Nxf4 {[%clk 0:00:04]}  Be5 {[%clk 0:00:08]} 43. Rxg8 {[%clk 0:00:03]}  Bxf4+ {[%clk 0:00:07]} 44. Kg4 {[%clk 0:00:04]}  Bxg5 {[%clk 0:00:04]} 45. Rxg5 {[%clk 0:00:03]}  Ng2 {[%clk 0:00:04]} 46. Re2 {[%clk 0:00:03]}  Rh2 {[%clk 0:00:04]} 47. Kg3 {[%clk 0:00:03]}  Rh1 {[%clk 0:00:04]} 48. Rg7+ {[%clk 0:00:03]}  Kc6 {[%clk 0:00:04]} 49. Kxg2 {[%clk 0:00:04]}  Kb6 {[%clk 0:00:04]} 50. Ree7 {[%clk 0:00:04]}  Rc1 {[%clk 0:00:04]} 51. Rxb7+ {[%clk 0:00:04]}  Ka5 {[%clk 0:00:05]} 52. a3 {[%clk 0:00:04]}  Ka6 {[%clk 0:00:05]} 53. Rxa7+ {[%clk 0:00:03]}  Kb6 {[%clk 0:00:06]} 54. Rab7+ {[%clk 0:00:04]}  Kc6 {[%clk 0:00:07]} 1-0


[Site "https://www.chess.com"]

[Event "Titled Tuesday Blitz January 10 Early 2023"]
[White "Koellner, Ruben Gideon"]
[Black "Baskakov, Egor"]
[WhiteFideId "12993093"]
[BlackFideId "24197866"]
[WhiteElo "2649"]
[BlackElo "2867"]
[Result "1/2-1/2"]
[Round "04"]
[TimeControl "180+1"]
[Date "2023.01.10"]
[WhiteClock "0:00:05"]
[BlackClock "0:00:18"]

1. d4 {[%clk 0:03:00]}  Nf6 {[%clk 0:02:59]} 2. Nf3 {[%clk 0:03:01]}  e6 {[%clk 0:02:59]} 3. Nbd2 {[%clk 0:03:01]}  d5 {[%clk 0:03:00]} 4. e3 {[%clk 0:03:01]}  Ne4 {[%clk 0:03:00]} 5. Nxe4 {[%clk 0:03:01]}  dxe4 {[%clk 0:03:01]} 6. Nd2 {[%clk 0:03:02]}  f5 {[%clk 0:03:01]} 7. f3 {[%clk 0:03:00]}  exf3 {[%clk 0:03:02]} 8. Qxf3 {[%clk 0:03:00]}  Bd6 {[%clk 0:03:02]} 9. Bc4 {[%clk 0:02:59]}  O-O {[%clk 0:02:57]} 10. O-O {[%clk 0:02:59]}  Kh8 {[%clk 0:02:55]} 11. c3 {[%clk 0:02:56]}  c5 {[%clk 0:02:55]} 12. Nb3 {[%clk 0:02:51]}  Qe7 {[%clk 0:02:50]} 13. Kh1 {[%clk 0:02:42]}  Nc6 {[%clk 0:02:49]} 14. Bd2 {[%clk 0:02:11]}  e5 {[%clk 0:02:29]} 15. Qh5 {[%clk 0:01:55]}  cxd4 {[%clk 0:02:14]} 16. exd4 {[%clk 0:01:52]}  e4 {[%clk 0:02:14]} 17. Bf4 {[%clk 0:01:37]}  Bd7 {[%clk 0:02:01]} 18. Rae1 {[%clk 0:01:31]}  b6 {[%clk 0:01:55]} 19. Re3 {[%clk 0:01:23]}  Bxf4 {[%clk 0:01:49]} 20. Rxf4 {[%clk 0:01:24]}  g5 {[%clk 0:01:49]} 21. Rf1 {[%clk 0:01:12]}  f4 {[%clk 0:01:48]} 22. Ree1 {[%clk 0:01:11]}  e3 {[%clk 0:01:45]} 23. Bd5 {[%clk 0:00:52]}  Rae8 {[%clk 0:01:36]} 24. Nc1 {[%clk 0:00:38]}  Qd6 {[%clk 0:01:06]} 25. Bf3 {[%clk 0:00:14]}  Qg6 {[%clk 0:00:43]} 26. Qxg6 {[%clk 0:00:13]}  hxg6 {[%clk 0:00:44]} 27. h3 {[%clk 0:00:14]}  Kg7 {[%clk 0:00:38]} 28. Kg1 {[%clk 0:00:14]}  Ne7 {[%clk 0:00:35]} 29. Nd3 {[%clk 0:00:14]}  Bb5 {[%clk 0:00:35]} 30. Be2 {[%clk 0:00:12]}  Bxd3 {[%clk 0:00:36]} 31. Bxd3 {[%clk 0:00:13]}  Nd5 {[%clk 0:00:36]} 32. Be2 {[%clk 0:00:13]}  Re7 {[%clk 0:00:35]} 33. Bf3 {[%clk 0:00:13]}  Rd8 {[%clk 0:00:35]} 34. Re2 {[%clk 0:00:13]}  Nf6 {[%clk 0:00:34]} 35. Rd1 {[%clk 0:00:13]}  Ne4 {[%clk 0:00:34]} 36. Bxe4 {[%clk 0:00:06]}  Rxe4 {[%clk 0:00:34]} 37. Ree1 {[%clk 0:00:06]}  Kf6 {[%clk 0:00:34]} 38. Kf1 {[%clk 0:00:06]}  Ke6 {[%clk 0:00:31]} 39. Ke2 {[%clk 0:00:07]}  Kf5 {[%clk 0:00:31]} 40. Kf3 {[%clk 0:00:06]}  Re7 {[%clk 0:00:31]} 41. Re2 {[%clk 0:00:07]}  Rh7 {[%clk 0:00:29]} 42. Ree1 {[%clk 0:00:06]}  Rdh8 {[%clk 0:00:26]} 43. d5 {[%clk 0:00:06]}  Rd8 {[%clk 0:00:25]} 44. c4 {[%clk 0:00:06]}  Rc7 {[%clk 0:00:25]} 45. b3 {[%clk 0:00:06]}  b5 {[%clk 0:00:25]} 46. Rd4 {[%clk 0:00:05]}  bxc4 {[%clk 0:00:25]} 47. bxc4 {[%clk 0:00:06]}  Rc5 {[%clk 0:00:25]} 48. Rb1 {[%clk 0:00:06]}  Ra5 {[%clk 0:00:23]} 49. Rb2 {[%clk 0:00:05]}  Rd6 {[%clk 0:00:24]} 50. Rc2 {[%clk 0:00:04]}  Rc5 {[%clk 0:00:23]} 51. Rb2 {[%clk 0:00:04]}  Ra5 {[%clk 0:00:21]} 52. Rc2 {[%clk 0:00:04]}  Rc5 {[%clk 0:00:21]} 53. Rb2 {[%clk 0:00:05]}  Ra5 {[%clk 0:00:18]} 1/2-1/2


[Site "https://www.chess.com"]